bitfinex/quotes_ETHUSD_20251120
["timestamp","ask_amount","ask_price","bid_price","bid_amount"]
[1763601176495,1.158404,3041.4,3041.3,0.001]
[1763601176896,4.44636349,3041.4,3041.3,0.001]
[1763601177400,4.75341116,3041.4,3041.3,0.001]
[1763601179036,5.6604038,3041.4,3041.3,0.001]
[1763601179211,5.6624038,3041.4,3041.3,0.001]
[1763601179830,6.55742969,3041.4,3041.3,0.001]
[1763601181437,1.84497356,3041.4,3041.3,0.001]
[1763601181635,4.34990716,3041.4,3041.3,0.001]
[1763601182205,4.75541116,3041.4,3041.3,0.001]
[1763601184612,4.29871116,3041.4,3041.3,0.001]
[1763601184938,4.64341116,3041.4,3041.3,0.001]
[1763601185235,4.75541116,3041.4,3041.3,0.001]
[1763601185898,5.55973771,3041.4,3041.3,0.001]
[1763601186302,5.55990745,3041.4,3041.3,0.001]
[1763601187338,5.44790745,3041.4,3041.3,0.001]
[1763601187834,5.55990745,3041.4,3041.3,0.001]
[1763601188236,1.31249664,3041.3,3040.9,0.001]
[1763601188402,0.875504,3041.0,3040.9,0.001]
[1763601188610,1.29472141,3041.0,3040.9,0.001]
[1763601188937,1.75422141,3041.0,3040.9,0.001]
[1763601190041,5.04261338,3041.0,3040.9,0.001]
[1763601190344,6.58491768,3041.0,3040.9,0.001]
[1763601191840,7.49191032,3041.0,3040.9,0.001]
[1763601192160,8.19947521,3041.0,3040.9,0.001]
[1763601194065,8.19947521,3041.0,3039.7,0.001]
[1763601194066,1.31249664,3040.9,3039.7,0.001]
[1763601194264,0.776304,3040.1,3039.7,0.001]
[1763601194452,0.888304,3040.1,3039.7,0.001]
[1763601194655,1.65502141,3040.1,3039.7,0.001]
[1763601195369,5.85137953,3040.1,3039.7,0.001]
[1763601196043,5.73937953,3040.1,3039.7,0.001]
[1763601196369,3.89618289,3040.1,3039.7,0.001]
[1763601196546,4.73895105,3040.1,3039.7,0.001]
[1763601196744,1.15608157,3040.1,3039.7,0.001]
[1763601196953,0.41921741,3040.1,3039.7,0.001]
[1763601197262,4.73636948,3040.1,3039.7,0.001]
[1763601197568,5.04358689,3040.1,3039.7,0.001]
[1763601199168,4.47208689,3040.1,3039.7,0.001]
[1763601199471,5.04358689,3040.1,3039.7,0.001]
[1763601199671,5.89519145,3040.1,3039.7,0.001]
[1763601202271,1.83910856,3040.1,3039.7,0.001]
[1763601202473,6.68994517,3040.1,3039.7,0.001]
[1763601202974,1.31249664,3040.0,3039.7,0.001]
[1763601203184,0.592304,3039.8,3039.7,0.001]
[1763601203342,1.80627513,3039.8,3039.7,0.001]
[1763601203674,2.06569641,3039.8,3039.7,0.001]
[1763601204373,6.26237916,3039.8,3039.7,0.001]
[1763601205447,5.85687516,3039.8,3039.7,0.001]
[1763601205644,7.00351018,3039.8,3039.7,0.001]
[1763601205858,6.70210026,3039.8,3039.7,0.001]
[1763601207771,6.29659626,3039.8,3039.7,0.001]
[1763601208212,0.30697849,3039.8,3039.7,0.46]
[1763601208502,6.57873096,3040.1,3039.7,0.46]
[1763601208714,0.71248249,3040.0,3039.7,0.46]
[1763601209061,0.30697849,3040.0,3039.7,0.4701]
[1763601209360,6.57743282,3040.7,3039.9,0.459]
[1763601209561,0.405504,3040.5,3039.9,0.459]
[1763601209754,0.30697849,3040.5,3039.9,0.459]
[1763601210185,3.28904091,3040.4,3040.0,0.4691]
[1763601210466,3.28904091,3040.4,3040.1,0.1864]
[1763601210991,0.405504,3040.3,3040.1,0.1864]
[1763601211174,3.28904091,3040.4,3040.1,0.1864]
[1763601211370,0.405504,3040.3,3039.7,0.001]
[1763601211600,0.405504,3040.3,3039.7,0.4701]
[1763601211759,0.71231355,3040.3,3039.7,3.75989174]
[1763601211963,0.405504,3040.3,3039.7,3.75989174]
[1763601212177,0.405504,3040.3,3039.8,0.4691]
[1763601212376,4.0016125,3040.3,3039.8,0.4691]
[1763601212589,7.37984907,3040.3,3039.7,0.001]
[1763601212761,0.71240439,3040.2,3039.8,0.4691]
[1763601213770,0.71240439,3040.2,3039.7,0.001]
[1763601213970,0.71240439,3040.2,3039.7,0.4701]
[1763601214614,0.71240439,3040.2,3039.8,0.1864]
[1763601214615,3.59617001,3040.2,3039.8,0.1864]
[1763601214794,1.41182414,3040.1,3039.8,0.1864]
[1763601215094,1.10492375,3040.1,3039.8,0.1864]
[1763601215425,0.405504,3039.9,3039.8,0.1874]
[1763601215567,0.869304,3039.9,3039.8,0.001]
[1763601215765,0.89426254,3039.9,3039.8,0.46]
[1763601215965,0.71251833,3039.9,3039.8,0.9291]
[1763601216387,0.405504,3040.0,3039.8,0.9291]
[1763601216603,0.71251833,3040.0,3039.8,0.9291]
[1763601216800,0.71251833,3040.0,3039.9,0.459]
[1763601217098,0.405504,3040.0,3039.9,0.9281]
[1763601217687,0.71251833,3040.0,3039.9,0.9281]
[1763601217903,0.405504,3040.0,3039.9,0.9281]
[1763601218209,0.30701433,3040.0,3039.9,0.9281]
[1763601218406,0.71451833,3040.2,3039.9,0.9281]
[1763601218596,0.71451833,3040.2,3040.1,0.4933]
[1763601218597,4.00378857,3040.2,3040.1,0.4933]
[1763601218906,4.40416743,3040.2,3040.1,0.4933]
[1763601219107,5.07146031,3041.3,3040.1,0.4933]
[1763601219108,1.18126424,3041.6,3040.3,1.30984]
[1763601219309,0.002,3041.8,3041.5,0.90699264]
[1763601219510,0.002,3041.8,3041.6,0.88591006]
[1763601219883,0.6391,3043.4,3041.6,0.88591006]
[1763601220083,3.28594004,3043.3,3041.6,0.88591006]
[1763601220284,3.92492316,3043.4,3041.9,0.1]
[1763601220484,3.46931706,3044.0,3041.9,0.1]
[1763601220485,0.6391,3043.7,3042.6,0.1]
[1763601220691,3.28560554,3043.6,3042.7,0.112]
[1763601221832,0.405504,3043.5,3042.7,0.112]
[1763601222033,6.57121108,3043.6,3042.7,0.112]
[1763601223232,0.455,3043.5,3042.0,0.90699264]
[1763601223528,0.405504,3043.4,3042.1,0.112]
[1763601223894,0.455,3043.3,3042.1,0.112]
[1763601224499,6.57202944,3043.2,3042.1,0.112]
[1763601224701,0.405504,3043.1,3042.1,0.112]
[1763601224930,0.405504,3042.9,3042.1,0.112]
[1763601225133,0.405504,3042.9,3041.8,0.90699264]
[1763601225320,0.405504,3042.7,3041.9,0.112]
[1763601225727,0.405504,3042.7,3042.0,0.112]
[1763601226033,0.405504,3042.7,3041.9,0.112]
[1763601226034,0.860504,3042.7,3041.9,0.112]
[1763601226824,0.405504,3042.5,3041.9,0.112]
[1763601227000,0.36921667,3042.4,3041.9,0.112]
[1763601227304,0.36921667,3042.4,3042.0,3.28731097]
[1763601227503,3.28666272,3042.6,3041.9,4.29439496]
[1763601227705,3.28666272,3042.6,3041.7,0.112]
[1763601227936,3.28666272,3042.6,3041.8,0.90699264]
[1763601229141,6.9786177,3042.7,3041.9,0.112]
[1763601229313,0.405504,3042.5,3041.9,1.01899264]
[1763601229646,0.405504,3042.5,3041.3,0.1]
[1763601229941,0.405504,3042.5,3041.0,0.90699264]
[1763601229942,0.860504,3042.5,3041.0,3.28839197]
[1763601230144,0.405504,3042.3,3041.2,0.1]
[1763601230312,0.860504,3042.3,3041.2,0.1]
[1763601230711,0.860504,3042.3,3041.3,0.112]
[1763601231141,6.57418972,3042.2,3041.4,1.01899264]
[1763601231319,0.74346937,3042.1,3041.5,0.1]
[1763601231520,3.69250729,3042.3,3041.5,0.1]
[1763601232044,3.69250729,3042.3,3041.6,0.112]
[1763601232271,6.97951058,3042.3,3041.4,0.90699264]
[1763601232448,7.43451058,3042.3,3041.5,0.112]
[1763601232649,0.405504,3042.1,3040.8,0.1]
[1763601232817,0.405504,3042.1,3040.9,0.112]
[1763601233016,1.19845106,3042.2,3041.1,0.90699264]
[1763601233017,6.57505424,3041.8,3041.1,0.90699264]
[1763601233348,0.405504,3041.7,3040.9,0.90699264]
[1763601233551,0.69805582,3041.6,3041.2,0.112]
[1763601234147,0.405504,3041.5,3040.4,1.00699264]
[1763601234351,0.860504,3041.5,3040.3,0.1]
[1763601234529,0.860504,3041.5,3040.6,0.1]
[1763601234724,0.860504,3041.5,3040.4,0.1]
[1763601234952,0.69805582,3041.6,3039.9,0.001]
[1763601234953,0.405504,3041.3,3039.9,0.001]
[1763601235128,0.405504,3041.1,3040.2,3.50125341]
[1763601235449,0.405504,3041.3,3040.3,0.13289149]
[1763601235450,3.28811023,3041.3,3040.3,0.13289149]
[1763601235751,0.6807,3040.3,3039.9,0.001]
[1763601235928,0.405504,3040.1,3039.9,0.001]
[1763601236144,0.902104,3040.0,3039.9,0.001]
[1763601236725,0.405504,3040.0,3039.9,0.001]
[1763601238068,3.69497768,3040.0,3039.9,0.001]
[1763601238359,4.19157768,3040.0,3039.9,0.001]
[1763601238527,4.64657768,3040.0,3039.9,0.001]
[1763601238932,3.69497768,3040.0,3039.9,0.001]
[1763601239263,0.405504,3040.0,3039.9,0.001]
[1763601239470,4.56106517,3040.0,3039.9,0.001]
[1763601239867,5.01606517,3040.0,3039.9,0.001]
[1763601241368,4.56106517,3040.0,3039.9,0.001]
[1763601242368,4.06446517,3040.0,3039.9,0.001]
[1763601242554,0.1841,3040.3,3039.9,0.001]
[1763601242764,7.21755152,3040.3,3039.9,0.001]
[1763601243071,0.405504,3040.2,3039.9,0.001]
[1763601243273,0.1841,3040.5,3039.9,0.001]
[1763601243434,3.28906932,3040.4,3039.9,0.001]
[1763601243635,3.28896671,3040.5,3039.9,0.001]
[1763601244183,3.28882479,3040.6,3039.9,0.001]
[1763601244184,3.28886975,3040.6,3039.9,0.001]
[1763601244484,0.405504,3040.5,3040.0,0.1]
[1763601244652,3.28819866,3041.2,3039.9,0.001]
[1763601244836,7.03139732,3041.2,3040.0,0.1]
[1763601245172,0.455,3041.1,3040.0,0.1]
[1763601246171,6.57678394,3041.0,3039.9,0.001]
[1763601246372,0.405504,3040.8,3040.0,0.112]
[1763601247041,0.405504,3040.8,3040.0,0.212]
[1763601247240,0.860504,3040.8,3040.0,0.112]
[1763601247434,0.405504,3040.6,3040.0,0.112]
[1763601247639,0.405504,3040.8,3040.0,0.212]
[1763601247934,1.17405063,3040.8,3040.0,0.212]
[1763601248334,0.405504,3040.6,3040.0,0.212]
[1763601249561,0.405504,3040.6,3039.9,0.001]
[1763601249762,6.57743282,3040.7,3039.9,0.001]
[1763601249763,0.405504,3040.4,3039.9,0.113]
[1763601250257,3.28925728,3040.2,3039.9,0.113]
[1763601250672,3.28918465,3040.3,3039.9,0.113]
[1763601251279,7.74154369,3040.3,3039.9,0.001]
[1763601251481,4.45235904,3040.3,3039.9,0.001]
[1763601251648,4.45235904,3040.3,3040.0,0.001]
[1763601252747,7.74154369,3040.3,3040.0,0.001]
[1763601252973,3.98755904,3040.3,3040.0,0.001]
[1763601254552,4.45235212,3040.3,3040.0,0.001]
[1763601254879,3.98755212,3040.3,3040.0,0.001]
[1763601255085,3.28917773,3040.3,3040.0,0.001]
[1763601255689,0.112,3040.7,3040.0,0.001]
[1763601255983,0.405504,3040.6,3040.0,0.001]
[1763601256764,0.870304,3040.6,3040.0,0.001]
[1763601257090,6.57786548,3040.5,3040.0,0.001]
[1763601257267,7.79868243,3040.5,3040.0,0.001]
[1763601257456,0.4648,3040.4,3040.0,0.001]
[1763601257782,0.405504,3040.3,3040.0,0.001]
[1763601258684,4.04494969,3040.5,3040.0,0.001]
[1763601258986,3.69432857,3040.6,3040.0,0.001]
[1763601259149,0.405504,3040.6,3040.0,0.001]
[1763601259356,3.28862901,3040.8,3040.0,1.00799264]
[1763601260592,0.405504,3040.8,3040.0,1.00799264]
[1763601260898,0.405504,3040.8,3040.2,0.1]
[1763601261081,0.405504,3040.8,3040.3,3.40114909]
[1763601261589,0.405504,3041.0,3040.3,3.40114909]
[1763601261769,4.02273047,3041.0,3040.3,3.40114909]
[1763601262152,7.31112835,3041.0,3040.3,3.40114909]
[1763601263058,7.31112835,3041.0,3040.2,3.28921813]
[1763601263390,0.405504,3040.8,3040.3,0.112]
[1763601263589,0.405504,3040.8,3040.0,4.19744337]
[1763601263805,0.4648,3040.8,3040.3,0.112]
[1763601264105,1.24239284,3040.8,3040.3,0.112]
[1763601264600,0.4648,3040.7,3040.3,0.112]
[1763601265294,3.75357731,3040.7,3040.3,0.112]
[1763601265882,3.28877731,3040.7,3040.3,0.112]
[1763601266084,3.75357731,3040.7,3040.3,0.112]
[1763601266290,3.28877731,3040.7,3040.3,0.112]
[1763601266476,0.4648,3040.6,3040.3,0.112]
[1763601266879,3.28877731,3040.7,3040.3,0.112]
[1763601268164,3.75357731,3040.7,3040.3,0.112]
[1763601268797,0.405504,3040.6,3040.0,0.001]
[1763601268988,0.4599,3040.4,3040.0,0.113]
[1763601269185,0.4599,3040.1,3040.0,0.001]
[1763601269387,3.74926548,3040.1,3040.0,0.001]
[1763601269575,4.64356948,3040.1,3040.0,0.001]
[1763601269800,5.43685252,3040.1,3040.0,0.001]
[1763601271065,4.48815252,3040.1,3040.0,0.001]
[1763601271268,4.64356948,3040.1,3040.0,0.001]
[1763601272406,1.354204,3040.1,3040.0,0.001]
[1763601272710,4.64356948,3040.1,3040.0,0.001]
[1763601274075,0.405504,3040.1,3040.0,0.001]
[1763601274401,4.64356948,3040.1,3040.0,0.001]
[1763601274605,5.10792643,3040.1,3040.0,0.001]
[1763601275178,1.32976095,3040.1,3040.0,0.001]
[1763601275377,0.865404,3040.1,3040.0,0.001]
[1763601276093,0.405504,3040.1,3040.0,0.001]
[1763601277514,0.112,3040.6,3040.0,0.001]
[1763601277706,0.32882859,3041.0,3040.0,0.101]
[1763601277707,0.4888,3040.8,3040.0,0.101]
[1763601278025,0.405504,3040.7,3040.0,0.101]
[1763601278192,3.7774991,3040.8,3040.0,0.101]
[1763601278193,3.2886991,3040.8,3040.0,0.101]
[1763601278510,3.2886991,3040.8,3040.1,0.112]
[1763601278915,0.405504,3040.1,3040.0,0.001]
[1763601279093,0.878604,3040.1,3040.0,0.001]
[1763601279912,3.28936548,3040.1,3040.0,0.001]
[1763601280119,1.1715045,3040.1,3039.3,0.001]
[1763601280293,0.405504,3039.1,3038.4,0.001]
[1763601280492,1.066304,3038.5,3038.4,0.001]
[1763601280680,1.551004,3038.5,3038.4,0.001]
[1763601280880,1.7173044,3038.5,3038.4,0.001]
[1763601281092,2.05397345,3038.5,3038.4,0.001]
[1763601281296,0.405504,3038.5,3038.4,0.001]
[1763601281493,1.363304,3038.5,3038.4,0.001]
[1763601281934,4.65440158,3038.5,3038.4,0.001]
[1763601283700,3.76419758,3038.5,3038.4,0.001]
[1763601284018,4.65440158,3038.5,3038.4,0.001]
[1763601284218,5.4601398,3038.5,3038.4,0.001]
[1763601284729,8.01797764,3038.1,3037.6,0.001]
[1763601284972,0.405504,3038.0,3037.6,0.001]
[1763601285124,1.057704,3037.7,3037.6,0.001]
[1763601285327,1.169704,3037.7,3037.6,0.001]
[1763601285527,1.169704,3037.7,3036.5,0.001]
[1763601285528,1.31249664,3037.6,3036.5,0.001]
[1763601285739,0.405504,3037.1,3036.5,0.001]
[1763601286064,0.90699264,3037.2,3036.5,0.001]
[1763601286065,0.405504,3036.7,3036.5,0.001]
[1763601286262,1.178304,3036.6,3036.5,0.001]
[1763601286432,1.95472239,3036.6,3036.5,0.001]
[1763601286630,2.43942239,3036.6,3036.5,0.001]
[1763601287029,0.90699264,3037.2,3036.5,0.0122]
[1763601287262,1.37229983,3038.5,3037.3,0.1]
[1763601287448,1.37229983,3038.5,3037.1,0.0112]
[1763601287449,7.18011178,3038.4,3037.1,0.0112]
[1763601287759,7.18011178,3038.4,3037.0,0.1]
[1763601287950,6.5828451,3038.2,3036.7,0.0112]
[1763601288262,9.87426765,3038.2,3036.5,3.29426489]
[1763601288564,0.4847,3038.1,3036.5,3.29426489]
[1763601288727,0.113,3038.0,3036.5,3.29426489]
[1763601288933,0.113,3038.0,3036.6,0.1]
[1763601289265,0.405504,3037.8,3036.9,0.1]
[1763601289670,0.113,3037.9,3037.3,0.1]
[1763601290039,0.113,3038.1,3037.4,3.29228945]
[1763601290267,0.113,3038.1,3036.6,1.24753913]
[1763601290568,0.113,3038.1,3037.0,0.1]
[1763601291155,0.5977,3038.1,3037.0,0.1]
[1763601291590,0.405504,3038.0,3037.0,0.1]
[1763601291777,0.405504,3038.0,3036.6,0.1]
[1763601291982,0.405504,3037.6,3036.7,0.90699264]
[1763601292182,0.405504,3037.4,3036.8,0.43001484]
[1763601295301,0.1877,3037.9,3036.7,0.90699264]
[1763601295302,0.4847,3038.2,3037.3,0.0112]
[1763601295566,0.71801118,3038.3,3036.9,0.04412831]
[1763601295567,0.113,3038.1,3037.5,0.1]
[1763601295791,11.09094631,3038.8,3037.5,0.1]
[1763601295792,0.113,3038.0,3037.5,0.1]
[1763601296215,0.113,3038.0,3037.3,0.1]
[1763601296778,0.1877,3037.9,3036.7,10.89903315]
[1763601296984,0.1877,3037.9,3037.1,0.1]
[1763601297283,0.1877,3037.9,3037.2,6.5850125]
[1763601297521,0.1877,3037.9,3037.2,3.29250625]
[1763601297692,3.47948745,3037.9,3037.2,3.29250625]
[1763601298209,0.1877,3037.9,3037.2,6.5850125]
[1763601298515,3.29165938,3038.0,3037.3,0.1]
[1763601299208,0.1877,3037.9,3037.3,0.1]
[1763601299414,3.47945791,3037.9,3037.3,3.39236071]
[1763601299615,3.47945791,3037.9,3036.7,3.50600004]
[1763601299616,0.405504,3037.8,3036.7,3.50600004]
[1763601299933,0.87914198,3037.7,3036.8,0.91819264]
[1763601300109,3.47945791,3037.9,3037.1,0.1]
[1763601300310,6.88421582,3037.9,3036.8,0.91819264]
[1763601300518,7.36891582,3037.9,3037.0,0.1]
[1763601300703,0.4847,3037.8,3037.0,0.1]
[1763601301281,3.77665818,3037.8,3037.1,3.29261466]
[1763601301515,4.84274558,3037.8,3037.0,6.68539949]
[1763601301720,4.84265065,3037.8,3037.0,6.68539949]
[1763601302519,0.4847,3037.7,3036.9,3.2928265]
[1763601303419,3.29174393,3038.0,3037.6,0.0112]
[1763601303726,0.002,3037.7,3037.1,0.90699264]
[1763601303932,0.002,3037.7,3037.4,0.1]
[1763601304132,0.002,3037.7,3037.6,0.0112]
[1763601304338,0.002,3037.7,3037.1,1.33737411]
[1763601304537,0.002,3037.7,3037.6,0.0112]
[1763601305495,0.002,3037.7,3037.6,3.41447268]
[1763601307745,0.002,3037.7,3037.6,0.0224]
[1763601307931,0.969,3037.7,3036.6,3.29305234]
[1763601308238,0.4767,3037.5,3036.6,3.29312995]
[1763601308453,0.82447805,3037.4,3036.5,0.001]
[1763601308635,0.405504,3037.2,3036.5,0.001]
[1763601308936,0.6605,3036.6,3036.5,0.001]
[1763601309433,4.75075507,3036.6,3036.5,0.001]
[1763601309655,5.56643527,3036.6,3036.5,0.001]
[1763601309941,5.97193927,3036.6,3036.5,0.001]
[1763601310305,6.67871509,3036.6,3036.5,0.001]
[1763601311123,6.79171509,3036.6,3036.5,0.001]
[1763601311335,3.49855827,3036.6,3036.5,0.001]
[1763601311527,6.79171509,3036.6,3036.5,0.001]
[1763601312154,6.79143063,3036.6,3036.5,0.001]
[1763601312337,6.79143063,3036.6,3036.2,0.001]
[1763601312338,1.31249664,3036.5,3036.2,0.001]
[1763601312537,0.4767,3036.3,3036.2,0.001]
[1763601312738,1.48998961,3036.3,3036.2,0.001]
[1763601313048,0.405504,3036.2,3036.0,0.001]
[1763601313250,1.30171779,3036.1,3036.0,0.001]
[1763601313549,5.30219276,3036.1,3036.0,0.001]
[1763601313711,6.7011004,3036.1,3036.0,0.001]
[1763601313916,5.2155964,3036.1,3036.0,0.001]
[1763601314211,6.1825964,3036.1,3036.0,0.001]
[1763601314415,6.5881004,3036.1,3036.0,0.001]
[1763601314845,6.0978004,3036.1,3036.0,0.001]
[1763601315330,5.88132458,3036.1,3036.0,0.001]
[1763601315518,5.99432458,3036.1,3036.0,0.001]
[1763601316033,5.50402458,3036.1,3036.0,0.001]
[1763601316755,2.70062543,3036.1,3036.0,0.001]
[1763601317047,1.32812143,3036.1,3036.0,0.001]
[1763601317217,0.41951379,3036.1,3036.0,0.001]
[1763601317556,4.26069915,3036.1,3036.0,0.001]
[1763601317760,4.68021294,3036.1,3036.0,0.001]
[1763601318144,5.08571694,3036.1,3036.0,0.001]
[1763601318462,5.78882784,3036.1,3036.0,0.001]
[1763601318619,7.02641847,3036.1,3036.0,0.001]
[1763601319117,7.93341111,3036.1,3036.0,0.001]
[1763601319316,9.10501912,3036.1,3036.0,0.001]
[1763601319959,7.93341111,3036.1,3036.0,0.001]
[1763601320126,9.10409613,3036.1,3036.0,0.001]
[1763601320315,8.99109613,3036.1,3036.0,0.001]
[1763601320515,7.93341111,3036.1,3036.0,0.001]
[1763601323155,8.81089483,3036.1,3036.0,0.001]
[1763601323358,7.93341111,3036.1,3036.0,0.001]
[1763601324062,7.82041111,3036.1,3036.0,0.001]
[1763601324251,7.93241111,3036.1,3036.0,0.001]
[1763601324458,7.82041111,3036.1,3036.0,0.001]
[1763601324623,7.93341111,3036.1,3036.0,0.001]
[1763601326877,7.23030021,3036.1,3036.0,0.001]
[1763601327375,7.11730021,3036.1,3036.0,0.001]
[1763601327574,6.82379621,3036.1,3036.0,0.001]
[1763601327752,5.91498242,3036.1,3036.0,0.001]
[1763601327954,6.02698242,3036.1,3036.0,0.001]
[1763601328359,6.92218642,3036.1,3036.0,0.001]
[1763601328546,7.92702242,3036.1,3036.0,0.001]
[1763601328849,7.22631305,3036.1,3036.0,0.001]
[1763601329055,7.11431305,3036.1,3036.0,0.001]
[1763601329252,7.22631305,3036.1,3036.0,0.001]
[1763601329751,6.71521305,3036.1,3036.0,0.001]
[1763601330087,5.84378642,3036.1,3036.0,0.001]
[1763601330258,0.1838,3036.6,3036.0,0.0142]
[1763601330457,3.49059241,3036.9,3036.1,0.0132]
[1763601330657,0.112,3036.8,3036.1,0.0132]
[1763601330856,1.01899264,3036.8,3036.1,0.0264]
[1763601331985,0.90699264,3036.8,3036.1,0.0132]
[1763601332154,3.29315682,3036.6,3036.1,0.0132]
[1763601332485,3.29272308,3037.0,3036.7,0.0132]
[1763601332670,0.112,3036.9,3036.7,0.0132]
[1763601332989,0.112,3036.9,3036.2,0.1]
[1763601333168,0.112,3036.9,3036.2,0.1132]
[1763601333372,3.29272339,3037.0,3036.2,0.1132]
[1763601333673,0.112,3036.9,3036.2,0.1132]
[1763601334182,0.112,3036.9,3036.8,0.0132]
[1763601334383,0.4897,3037.6,3036.8,0.0132]
[1763601334582,0.112,3037.5,3036.9,0.0132]
[1763601334761,3.29218106,3037.5,3036.9,0.0132]
[1763601335092,1.01899264,3037.4,3036.9,0.0132]
[1763601335264,0.35140949,3037.3,3036.9,0.0132]
[1763601335466,0.405504,3037.4,3036.9,0.1264]
[1763601335677,3.2921013,3037.6,3036.7,0.0132]
[1763601335877,0.112,3037.4,3036.7,0.0132]
[1763601336281,3.40433005,3037.4,3036.8,3.29293993]
[1763601336589,3.40433005,3037.4,3036.7,3.30619533]
[1763601336887,3.40433005,3037.4,3036.7,3.29299533]
[1763601337289,0.112,3037.4,3036.7,6.5860437]
[1763601337595,0.112,3037.4,3036.8,0.1]
[1763601337798,0.112,3037.4,3036.8,0.1132]
[1763601338098,0.112,3037.4,3036.8,0.1]
[1763601338295,0.112,3037.4,3036.9,3.2928315]
[1763601338662,0.002,3037.3,3036.9,3.2928315]
[1763601338888,0.002,3037.3,3036.8,3.39292328]
[1763601339092,0.002,3037.3,3037.2,0.0132]
[1763601340114,0.002,3037.3,3037.2,0.0264]
[1763601340264,0.002,3037.3,3037.2,3.41890625]
[1763601340467,0.002,3037.6,3037.5,0.1]
[1763601340704,0.002,3037.6,3037.5,0.1132]
[1763601340868,0.002,3037.6,3037.5,0.1264]
[1763601341627,0.002,3037.6,3037.5,0.0264]
[1763601342001,0.002,3037.6,3037.5,0.1264]
[1763601342686,0.002,3037.6,3037.5,3.41858106]
[1763601344218,0.002,3037.6,3037.5,4.3255737]
[1763601344419,0.002,3038.4,3037.6,1.00699264]
[1763601344585,0.002,3038.4,3038.0,0.1132]
[1763601344785,0.002,3038.4,3038.0,3.40483923]
[1763601345030,0.002,3038.4,3038.0,3.41803923]
[1763601345200,0.002,3038.4,3038.0,0.0132]
[1763601345726,0.002,3038.4,3037.5,3.29213778]
[1763601345727,0.4644,3038.4,3037.5,1.00699264]
[1763601345883,0.002,3038.4,3037.5,0.90699264]
[1763601346089,0.002,3038.4,3038.0,0.0132]
[1763601346607,0.002,3038.4,3037.7,0.1]
[1763601346807,0.002,3038.4,3037.7,3.39195884]
[1763601348016,0.002,3038.4,3037.6,3.2920377]
[1763601348217,0.002,3038.4,3037.6,3.3920377]
[1763601348424,0.002,3038.4,3038.0,0.1132]
[1763601348792,0.002,3038.4,3038.0,3.40483923]
[1763601351198,0.002,3038.4,3038.0,3.41803923]
[1763601352113,0.002,3038.4,3038.0,4.32503187]
[1763601352830,0.002,3038.4,3038.3,0.1]
[1763601353013,0.002,3038.4,3038.3,4.31150686]
[1763601353323,0.002,3038.4,3038.3,4.32470686]
[1763601354929,0.002,3038.4,3038.3,4.43670686]
[1763601355936,0.87748372,3040.7,3038.3,4.43670686]
[1763601355937,0.1923,3040.8,3040.1,0.1]
[1763601356105,0.87748372,3041.1,3038.4,1.83101971]
[1763601356106,0.4624,3041.0,3040.3,0.1]
[1763601356427,0.51796172,3042.0,3040.3,0.1]
[1763601356428,0.4624,3041.4,3040.3,0.1]
[1763601356630,0.4624,3041.4,3040.3,0.1132]
[1763601356994,0.4624,3041.4,3040.5,0.90699264]
[1763601358329,0.37502552,3041.3,3040.9,0.1]
[1763601359229,0.4872,3041.0,3040.3,0.1]
[1763601359429,0.4872,3041.0,3040.4,0.112]
[1763601359809,0.1923,3040.9,3040.5,0.1]
[1763601359991,0.4872,3041.0,3040.5,0.1]
[1763601360198,0.1923,3041.1,3040.7,0.1]
[1763601360619,0.4872,3040.8,3040.3,0.112]
[1763601361036,0.4624,3040.7,3040.3,0.112]
[1763601361214,0.4624,3040.7,3040.0,1.00699264]
[1763601361412,0.88621603,3040.7,3040.0,1.00699264]
[1763601361612,4.17498667,3040.7,3040.0,0.1]
[1763601361832,0.4624,3040.6,3040.0,0.1]
[1763601362433,0.4624,3040.6,3039.9,1.01899264]
[1763601362836,0.42381603,3040.7,3040.0,0.1]
[1763601363022,0.4624,3040.9,3040.0,0.1]
[1763601363337,0.4872,3040.1,3038.8,0.48286695]
[1763601363510,0.4872,3040.0,3038.9,0.1]
[1763601363722,0.9496,3040.0,3039.2,0.1]
[1763601363898,0.1923,3039.9,3039.0,0.1]
[1763601364101,0.6547,3039.9,3039.0,0.1]
[1763601364502,0.4624,3039.8,3038.8,0.1]
[1763601364744,0.4624,3039.8,3038.1,6.58306178]
[1763601364907,0.6795,3038.8,3038.1,6.58306178]
[1763601365101,3.29088096,3038.7,3038.0,0.101]
[1763601365304,0.3970381,3038.6,3038.0,0.001]
[1763601365508,0.8594381,3038.6,3038.0,0.001]
[1763601366313,0.4872,3038.1,3038.0,0.001]
[1763601366843,0.9496,3038.1,3038.0,0.001]
[1763601367046,0.3970381,3038.6,3038.0,0.001]
[1763601367237,4.45140411,3038.5,3038.0,0.001]
[1763601367611,0.4624,3038.4,3038.0,0.001]
[1763601368151,0.1923,3038.8,3038.1,0.1]
[1763601368319,3.93798597,3038.8,3038.1,0.1]
[1763601368636,4.8449712,3038.8,3038.0,0.101]
[1763601368844,1.84638976,3038.7,3038.0,0.001]
[1763601369153,3.29098927,3038.6,3038.0,0.001]
[1763601369348,4.23030666,3038.7,3038.0,0.001]
[1763601369555,0.1923,3039.0,3038.0,0.001]
[1763601369845,0.4549,3038.8,3038.1,0.1]
[1763601370046,1.36189264,3038.8,3038.1,0.1]